[Event "Early-Titled-Tuesday-Blitz-February-06-2024"]
[Site "Chess.com"]
[Date "2024.02.06"]
[Round "2"]
[White "lucliasco"]
[Black "maximnovik"]
[Result "1/2-1/2"]
[WhiteElo "2867"]
[BlackElo "2607"]
[TimeControl "180+1"]
[EndTime "8:18:59 PST"]
[Termination "Game drawn - insufficient material"]

1. e4 {[%clk 0:03:00.9]} 1... c6 {[%clk 0:02:57.5]} 2. Nc3 {[%clk 0:02:57.7]}
2... d5 {[%clk 0:02:57.9]} 3. Nf3 {[%clk 0:02:58.6]} 3... Bg4 {[%clk 0:02:54.1]}
4. d4 {[%clk 0:02:55.4]} 4... dxe4 {[%clk 0:02:51.5]} 5. Nxe4 {[%clk 0:02:55.1]}
5... Nd7 {[%clk 0:02:51.8]} 6. Bc4 {[%clk 0:02:53.5]} 6... e6 {[%clk 0:02:49.7]}
7. O-O {[%clk 0:02:53.6]} 7... Ngf6 {[%clk 0:02:49.1]} 8. Ng3 {[%clk 0:02:46.7]}
8... Nb6 {[%clk 0:02:43.4]} 9. Be2 {[%clk 0:02:32.6]} 9... Bd6 {[%clk
0:02:42.6]} 10. a4 {[%clk 0:02:27.6]} 10... a5 {[%clk 0:02:39]} 11. b3 {[%clk
0:02:14.9]} 11... O-O {[%clk 0:02:37.1]} 12. Bb2 {[%clk 0:02:14.7]} 12... Qc7
{[%clk 0:02:34.7]} 13. Ne5 {[%clk 0:02:11.5]} 13... Bxe2 {[%clk 0:02:32.1]} 14.
Qxe2 {[%clk 0:02:10.9]} 14... Rad8 {[%clk 0:02:22.7]} 15. f4 {[%clk 0:02:04.5]}
15... g6 {[%clk 0:02:09.3]} 16. h4 {[%clk 0:02:00.3]} 16... Rfe8 {[%clk
0:02:07.5]} 17. h5 {[%clk 0:01:58.4]} 17... Bf8 {[%clk 0:02:05.8]} 18. hxg6
{[%clk 0:01:57.7]} 18... hxg6 {[%clk 0:02:05.2]} 19. Rad1 {[%clk 0:01:55.8]}
19... c5 {[%clk 0:01:51.1]} 20. dxc5 {[%clk 0:01:50]} 20... Qxc5+ {[%clk
0:01:39.1]} 21. Kh2 {[%clk 0:01:44]} 21... Bg7 {[%clk 0:01:37.1]} 22. c4 {[%clk
0:01:38.7]} 22... Qc7 {[%clk 0:01:24.9]} 23. Ne4 {[%clk 0:01:33.6]} 23... Nxe4
{[%clk 0:01:21.1]} 24. Qxe4 {[%clk 0:01:34.5]} 24... Nd7 {[%clk 0:01:17.9]} 25.
Rxd7 {[%clk 0:01:04.7]} 25... Rxd7 {[%clk 0:01:15.2]} 26. Nxd7 {[%clk
0:01:04.8]} 26... Bxb2 {[%clk 0:00:57.3]} 27. Rf2 {[%clk 0:01:01.8]} 27... Qxd7
{[%clk 0:00:52]} 28. Rxb2 {[%clk 0:01:00.2]} 28... Rd8 {[%clk 0:00:52.2]} 29.
Rf2 {[%clk 0:00:53.5]} 29... b6 {[%clk 0:00:45.4]} 30. Qe5 {[%clk 0:00:49.5]}
30... Qd6 {[%clk 0:00:44.7]} 31. Qf6 {[%clk 0:00:46.5]} 31... Qd4 {[%clk
0:00:43.4]} 32. Qh4 {[%clk 0:00:46.8]} 32... Kg7 {[%clk 0:00:42.4]} 33. Qg3
{[%clk 0:00:44.3]} 33... Rh8+ {[%clk 0:00:19.7]} 34. Kg1 {[%clk 0:00:44.2]}
34... Qd1+ {[%clk 0:00:20]} 35. Rf1 {[%clk 0:00:41.7]} 35... Qd4+ {[%clk
0:00:19.8]} 36. Rf2 {[%clk 0:00:42]} 36... Qd1+ {[%clk 0:00:19.5]} 37. Rf1
{[%clk 0:00:42.1]} 37... Qd4+ {[%clk 0:00:19.3]} 38. Qf2 {[%clk 0:00:43]} 38...
Rd8 {[%clk 0:00:18.5]} 39. Rc1 {[%clk 0:00:39.4]} 39... Qc5 {[%clk 0:00:16.7]}
40. Qxc5 {[%clk 0:00:36.7]} 40... bxc5 {[%clk 0:00:15.9]} 41. Re1 {[%clk
0:00:37.6]} 41... Kf6 {[%clk 0:00:15.9]} 42. Re5 {[%clk 0:00:35.9]} 42... Rd3
{[%clk 0:00:15.9]} 43. Rxc5 {[%clk 0:00:33.6]} 43... Rxb3 {[%clk 0:00:16.4]} 44.
Rxa5 {[%clk 0:00:34.5]} 44... Rb4 {[%clk 0:00:16.8]} 45. g3 {[%clk 0:00:32.8]}
45... Rxc4 {[%clk 0:00:16.8]} 46. Kf2 {[%clk 0:00:33.1]} 46... Rc3 {[%clk
0:00:16.9]} 47. g4 {[%clk 0:00:31.7]} 47... Ra3 {[%clk 0:00:16.1]} 48. g5+
{[%clk 0:00:29.8]} 48... Ke7 {[%clk 0:00:16.4]} 49. Ra7+ {[%clk 0:00:27.8]}
49... Kf8 {[%clk 0:00:16.5]} 50. a5 {[%clk 0:00:26.1]} 50... Kg7 {[%clk
0:00:15]} 51. Ke2 {[%clk 0:00:24.1]} 51... Kg8 {[%clk 0:00:14.4]} 52. a6 {[%clk
0:00:23.4]} 52... Kg7 {[%clk 0:00:14.7]} 53. Ra8 {[%clk 0:00:23.3]} 53... Ra5
{[%clk 0:00:12.6]} 54. Kd3 {[%clk 0:00:22.1]} 54... e5 {[%clk 0:00:12.8]} 55.
fxe5 {[%clk 0:00:19.9]} 55... Rxe5 {[%clk 0:00:12.9]} 56. Rd8 {[%clk 0:00:18.6]}
56... Ra5 {[%clk 0:00:12.6]} 57. Rd6 {[%clk 0:00:15.9]} 57... Rxg5 {[%clk
0:00:12.4]} 58. Kc4 {[%clk 0:00:15.9]} 58... Ra5 {[%clk 0:00:12.9]} 59. Kb4
{[%clk 0:00:14.1]} 59... Ra1 {[%clk 0:00:12.8]} 60. Kb5 {[%clk 0:00:14.7]} 60...
g5 {[%clk 0:00:12.9]} 61. Rd4 {[%clk 0:00:13.2]} 61... f5 {[%clk 0:00:12]} 62.
Ra4 {[%clk 0:00:13.3]} 62... Rb1+ {[%clk 0:00:11.7]} 63. Kc6 {[%clk 0:00:13.9]}
63... Rb8 {[%clk 0:00:11.8]} 64. a7 {[%clk 0:00:14.4]} 64... Ra8 {[%clk
0:00:12.1]} 65. Kb7 {[%clk 0:00:15.3]} 65... Rxa7+ {[%clk 0:00:12.4]} 66. Kxa7
{[%clk 0:00:16]} 66... Kf6 {[%clk 0:00:12.8]} 67. Kb6 {[%clk 0:00:16.9]} 67...
Ke5 {[%clk 0:00:13.2]} 68. Kc5 {[%clk 0:00:17.8]} 68... g4 {[%clk 0:00:13.5]}
69. Ra8 {[%clk 0:00:17.7]} 69... g3 {[%clk 0:00:12.5]} 70. Re8+ {[%clk
0:00:15.6]} 70... Kf4 {[%clk 0:00:12.3]} 71. Kd4 {[%clk 0:00:15.6]} 71... g2
{[%clk 0:00:12.2]} 72. Rg8 {[%clk 0:00:14.4]} 72... Kf3 {[%clk 0:00:12.4]} 73.
Ke5 {[%clk 0:00:13.7]} 73... Kf2 {[%clk 0:00:12]} 74. Rxg2+ {[%clk 0:00:11.9]}
74... Kxg2 {[%clk 0:00:11.5]} 75. Kxf5 {[%clk 0:00:12.8]} 1/2-1/2

[Event "Early-Titled-Tuesday-Blitz-February-06-2024"]
[Site "Chess.com"]
[Date "2024.02.06"]
[Round "2"]
[White "scarabee43"]
[Black "bazar-wokzal"]
[Result "1-0"]
[WhiteElo "2871"]
[BlackElo "2591"]
[TimeControl "180+1"]
[EndTime "8:19:00 PST"]
[Termination "scarabee43 won on time"]

1. Nf3 {[%clk 0:03:00.9]} 1... c5 {[%clk 0:02:58.6]} 2. c4 {[%clk 0:03:00.9]}
2... g6 {[%clk 0:02:58.1]} 3. e3 {[%clk 0:02:56.6]} 3... Bg7 {[%clk 0:02:58.2]}
4. d4 {[%clk 0:02:57.2]} 4... Nf6 {[%clk 0:02:56.3]} 5. Nc3 {[%clk 0:02:56.2]}
5... O-O {[%clk 0:02:54]} 6. Be2 {[%clk 0:02:50.8]} 6... d5 {[%clk 0:02:53.8]}
7. O-O {[%clk 0:02:46]} 7... dxc4 {[%clk 0:02:46.6]} 8. Bxc4 {[%clk 0:02:34.7]}
8... cxd4 {[%clk 0:02:42.3]} 9. Nxd4 {[%clk 0:02:32.5]} 9... a6 {[%clk
0:02:39.3]} 10. Be2 {[%clk 0:02:30.7]} 10... e5 {[%clk 0:02:32.7]} 11. Nb3
{[%clk 0:02:19.6]} 11... Nc6 {[%clk 0:02:30.6]} 12. Bd2 {[%clk 0:02:05.8]} 12...
Bf5 {[%clk 0:02:26.6]} 13. Rc1 {[%clk 0:02:00.9]} 13... Rc8 {[%clk 0:02:16.8]}
14. a3 {[%clk 0:01:47.8]} 14... Bd3 {[%clk 0:02:11.3]} 15. Bxd3 {[%clk
0:01:43.4]} 15... Qxd3 {[%clk 0:02:10.7]} 16. Nc5 {[%clk 0:01:44]} 16... Qd6
{[%clk 0:02:03.9]} 17. Nxb7 {[%clk 0:01:41.8]} 17... Qe7 {[%clk 0:02:03.7]} 18.
Qb3 {[%clk 0:01:30.7]} 18... Rb8 {[%clk 0:02:00.9]} 19. Nd5 {[%clk 0:01:29.1]}
19... Nxd5 {[%clk 0:01:48]} 20. Qxd5 {[%clk 0:01:29.2]} 20... Qxb7 {[%clk
0:01:32.6]} 21. Qxc6 {[%clk 0:01:28.6]} 21... Qxc6 {[%clk 0:01:32.5]} 22. Rxc6
{[%clk 0:01:29.2]} 22... Rxb2 {[%clk 0:01:32.2]} 23. Bb4 {[%clk 0:01:27.6]}
23... Ra8 {[%clk 0:01:30]} 24. Rfc1 {[%clk 0:01:21]} 24... h5 {[%clk 0:01:17.5]}
25. h3 {[%clk 0:01:06.2]} 25... Ra2 {[%clk 0:00:46.2]} 26. R1c5 {[%clk
0:00:50.5]} 26... Bf8 {[%clk 0:00:32.2]} 27. Rxe5 {[%clk 0:00:46.9]} 27... Bxb4
{[%clk 0:00:28.9]} 28. axb4 {[%clk 0:00:46.5]} 28... Rb8 {[%clk 0:00:29.2]} 29.
Re7 {[%clk 0:00:41.6]} 29... Rb2 {[%clk 0:00:27.9]} 30. Rf6 {[%clk 0:00:41.1]}
30... Rf8 {[%clk 0:00:27.4]} 31. Rb7 {[%clk 0:00:36]} 31... a5 {[%clk
0:00:27.2]} 32. b5 {[%clk 0:00:35.9]} 32... a4 {[%clk 0:00:27.1]} 33. Ra6 {[%clk
0:00:35.7]} 33... Rb1+ {[%clk 0:00:24.5]} 34. Kh2 {[%clk 0:00:35.1]} 34... Rb4
{[%clk 0:00:25.4]} 35. b6 {[%clk 0:00:32]} 35... Kg7 {[%clk 0:00:24.7]} 36. Rc7
{[%clk 0:00:22.5]} 36... h4 {[%clk 0:00:19.5]} 37. b7 {[%clk 0:00:21.9]} 37...
Rb8 {[%clk 0:00:19.3]} 38. Ra7 {[%clk 0:00:22]} 38... a3 {[%clk 0:00:18.7]} 39.
Rxa3 {[%clk 0:00:19.2]} 39... R8xb7 {[%clk 0:00:18.4]} 40. Rxb7 {[%clk
0:00:19.6]} 40... Rxb7 {[%clk 0:00:18.9]} 41. Ra4 {[%clk 0:00:20.3]} 41... g5
{[%clk 0:00:19]} 42. Rg4 {[%clk 0:00:20.4]} 42... f6 {[%clk 0:00:16.2]} 43. f4
{[%clk 0:00:18.6]} 43... Kg6 {[%clk 0:00:16.1]} 44. Kg1 {[%clk 0:00:18.8]} 44...
Rb2 {[%clk 0:00:15.8]} 45. Kf1 {[%clk 0:00:17.6]} 45... Rc2 {[%clk 0:00:15.6]}
46. fxg5 {[%clk 0:00:16.5]} 46... fxg5 {[%clk 0:00:15.5]} 47. Re4 {[%clk
0:00:15.6]} 47... Kf5 {[%clk 0:00:14.6]} 48. Re8 {[%clk 0:00:15.8]} 48... Ra2
{[%clk 0:00:14.5]} 49. Re7 {[%clk 0:00:14.2]} 49... Rb2 {[%clk 0:00:14.4]} 50.
Rf7+ {[%clk 0:00:11.1]} 50... Ke4 {[%clk 0:00:12.6]} 51. Re7+ {[%clk 0:00:07.8]}
51... Kf5 {[%clk 0:00:13]} 52. Kg1 {[%clk 0:00:08.1]} 52... Ra2 {[%clk
0:00:13.1]} 53. Rf7+ {[%clk 0:00:06.2]} 53... Ke4 {[%clk 0:00:12.2]} 54. Rg7
{[%clk 0:00:06.6]} 54... Kf5 {[%clk 0:00:12.5]} 55. e4+ {[%clk 0:00:06.3]} 55...
Kf4 {[%clk 0:00:12.3]} 56. e5 {[%clk 0:00:06.8]} 56... Re2 {[%clk 0:00:12]} 57.
Rf7+ {[%clk 0:00:06.6]} 57... Ke4 {[%clk 0:00:08.4]} 58. e6 {[%clk 0:00:06.4]}
58... Kd5 {[%clk 0:00:03]} 59. e7 {[%clk 0:00:04.5]} 59... Kd6 {[%clk
0:00:01.9]} 60. Rg7 {[%clk 0:00:03.7]} 60... Rxe7 {[%clk 0:00:01.5]} 61. Rxg5
{[%clk 0:00:04]} 61... Rh7 {[%clk 0:00:01.7]} 62. Kf2 {[%clk 0:00:03.9]} 62...
Ke6 {[%clk 0:00:02.2]} 63. Kf3 {[%clk 0:00:04.6]} 63... Kf6 {[%clk 0:00:02.7]}
64. Kg4 {[%clk 0:00:05.2]} 64... Rh8 {[%clk 0:00:01.9]} 65. Rf5+ {[%clk
0:00:04.5]} 65... Kg6 {[%clk 0:00:01.6]} 66. Ra5 {[%clk 0:00:04.4]} 66... Kf6
{[%clk 0:00:01.4]} 67. Rh5 {[%clk 0:00:02.7]} 67... Rg8+ {[%clk 0:00:01.2]} 68.
Kf3 {[%clk 0:00:03.1]} 1-0

[Event "Early-Titled-Tuesday-Blitz-February-06-2024"]
[Site "Chess.com"]
[Date "2024.02.06"]
[Round "2"]
[White "chito89"]
[Black "jaskol95"]
[Result "1-0"]
[WhiteElo "2894"]
[BlackElo "2604"]
[TimeControl "180+1"]
[EndTime "8:19:06 PST"]
[Termination "chito89 won by resignation"]

1. e4 {[%clk 0:02:59.4]} 1... d5 {[%clk 0:03:00.2]} 2. exd5 {[%clk 0:02:58.5]}
2... Nf6 {[%clk 0:03:00.4]} 3. d4 {[%clk 0:02:56.4]} 3... Bg4 {[%clk 0:03:00.6]}
4. Nf3 {[%clk 0:02:53.9]} 4... Qxd5 {[%clk 0:02:57.6]} 5. Nc3 {[%clk 0:02:52.8]}
5... Qd8 {[%clk 0:02:50.2]} 6. h3 {[%clk 0:02:45.3]} 6... Bxf3 {[%clk
0:02:48.3]} 7. Qxf3 {[%clk 0:02:46.2]} 7... c6 {[%clk 0:02:48.9]} 8. Be3 {[%clk
0:02:43.5]} 8... e6 {[%clk 0:02:49.1]} 9. O-O-O {[%clk 0:02:31.7]} 9... Be7
{[%clk 0:02:45.9]} 10. Kb1 {[%clk 0:02:29.5]} 10... Nbd7 {[%clk 0:02:42.7]} 11.
g4 {[%clk 0:02:21.4]} 11... Qa5 {[%clk 0:02:33.2]} 12. g5 {[%clk 0:01:22.7]}
12... Nd5 {[%clk 0:02:29.7]} 13. Ne4 {[%clk 0:01:13.6]} 13... Rf8 {[%clk
0:02:09.1]} 14. Bd2 {[%clk 0:01:10.9]} 14... Qa4 {[%clk 0:01:03.5]} 15. c4
{[%clk 0:00:42]} 15... N5b6 {[%clk 0:00:27.7]} 16. b3 {[%clk 0:00:37.6]} 16...
Qa3 {[%clk 0:00:25.2]} 17. Bc1 {[%clk 0:00:29.5]} 17... Qb4 {[%clk 0:00:25.4]}
18. a3 {[%clk 0:00:23.5]} 18... Qa5 {[%clk 0:00:25]} 19. b4 {[%clk 0:00:21]}
19... Qf5 {[%clk 0:00:24.4]} 20. Qxf5 {[%clk 0:00:20.5]} 20... exf5 {[%clk
0:00:25.3]} 21. Ng3 {[%clk 0:00:19.6]} 21... g6 {[%clk 0:00:16.5]} 22. Re1
{[%clk 0:00:19.8]} 22... Kd8 {[%clk 0:00:17.2]} 23. h4 {[%clk 0:00:17.4]} 23...
Re8 {[%clk 0:00:15.9]} 24. c5 {[%clk 0:00:16.1]} 24... Nd5 {[%clk 0:00:15.9]}
25. Bc4 {[%clk 0:00:16.8]} 25... b5 {[%clk 0:00:14.2]} 26. Bxd5 {[%clk
0:00:15.7]} 26... cxd5 {[%clk 0:00:14.9]} 27. Ne2 {[%clk 0:00:16.2]} 27... Kc7
{[%clk 0:00:14.2]} 28. Nf4 {[%clk 0:00:12.2]} 28... Kc6 {[%clk 0:00:14.8]} 29.
Rh3 {[%clk 0:00:10.8]} 29... Bf8 {[%clk 0:00:10.7]} 30. Reh1 {[%clk 0:00:09.3]}
30... Bg7 {[%clk 0:00:10.3]} 31. Be3 {[%clk 0:00:08.7]} 31... Re4 {[%clk
0:00:10.3]} 32. Ne2 {[%clk 0:00:06.8]} 32... Rae8 {[%clk 0:00:09.3]} 33. h5
{[%clk 0:00:05.2]} 33... f4 {[%clk 0:00:09.3]} 34. Nxf4 {[%clk 0:00:04.2]} 34...
Bxd4 {[%clk 0:00:09.8]} 35. hxg6 {[%clk 0:00:04.6]} 35... hxg6 {[%clk
0:00:09.3]} 36. Bxd4 {[%clk 0:00:04.1]} 36... Rxd4 {[%clk 0:00:07.6]} 37. Nd3
{[%clk 0:00:04.1]} 37... Re2 {[%clk 0:00:07]} 38. Rf3 {[%clk 0:00:04.3]} 38...
a5 {[%clk 0:00:03.9]} 39. Nc1 {[%clk 0:00:04.2]} 39... Ree4 {[%clk 0:00:01.8]}
40. Nb3 {[%clk 0:00:04.6]} 40... Rc4 {[%clk 0:00:01.9]} 41. Nxa5+ {[%clk
0:00:05]} 41... Kc7 {[%clk 0:00:01.8]} 42. Nxc4 {[%clk 0:00:05.9]} 42... bxc4
{[%clk 0:00:02.3]} 43. Rxf7 {[%clk 0:00:06.6]} 43... Kc6 {[%clk 0:00:03]} 44.
Rxd7 {[%clk 0:00:05.8]} 44... Kxd7 {[%clk 0:00:03.3]} 45. b5 {[%clk 0:00:03.6]}
45... d4 {[%clk 0:00:03.5]} 46. Rh7+ {[%clk 0:00:04.3]} 46... Ke6 {[%clk
0:00:03.9]} 47. c6 {[%clk 0:00:04.2]} 47... Kd6 {[%clk 0:00:04.4]} 48. c7 {[%clk
0:00:04.3]} 48... Re8 {[%clk 0:00:05.1]} 49. a4 {[%clk 0:00:02.6]} 49... Kc5
{[%clk 0:00:05.4]} 50. Rd7 {[%clk 0:00:02.7]} 50... Kb6 {[%clk 0:00:05.6]} 51.
Rd8 {[%clk 0:00:03.2]} 51... Re1+ {[%clk 0:00:06]} 52. Kc2 {[%clk 0:00:03.7]}
52... Kxc7 {[%clk 0:00:06.9]} 53. Rxd4 {[%clk 0:00:04.2]} 53... Re2+ {[%clk
0:00:07]} 54. Rd2 {[%clk 0:00:04.8]} 54... Re4 {[%clk 0:00:07.1]} 55. Kc3 {[%clk
0:00:05.2]} 55... Kb6 {[%clk 0:00:07.6]} 56. Rd4 {[%clk 0:00:05.9]} 56... Re2
{[%clk 0:00:08]} 57. f4 {[%clk 0:00:06.2]} 57... Ka5 {[%clk 0:00:08]} 58. Rxc4
{[%clk 0:00:06.5]} 58... Re3+ {[%clk 0:00:08.7]} 59. Kd4 {[%clk 0:00:06.4]}
59... Re1 {[%clk 0:00:09]} 60. Kd5 {[%clk 0:00:07.3]} 60... Rd1+ {[%clk
0:00:09.3]} 61. Rd4 {[%clk 0:00:07.7]} 61... Re1 {[%clk 0:00:09.4]} 62. Re4
{[%clk 0:00:08.3]} 62... Rd1+ {[%clk 0:00:09.3]} 63. Ke5 {[%clk 0:00:09.2]}
63... Kb6 {[%clk 0:00:09.6]} 64. Kf6 {[%clk 0:00:09.6]} 64... Kc5 {[%clk
0:00:10.3]} 65. Kxg6 {[%clk 0:00:09.9]} 65... Rd6+ {[%clk 0:00:10.7]} 66. Kf5
{[%clk 0:00:09.5]} 66... Kd5 {[%clk 0:00:10.8]} 67. g6 {[%clk 0:00:09.8]} 67...
Rd8 {[%clk 0:00:10.1]} 68. Re5+ {[%clk 0:00:10.4]} 68... Kd6 {[%clk 0:00:10.3]}
69. g7 {[%clk 0:00:11.3]} 69... Rg8 {[%clk 0:00:10.6]} 70. Kg6 {[%clk
0:00:11.8]} 70... Kd7 {[%clk 0:00:10.5]} 71. Kf7 {[%clk 0:00:11.6]} 1-0

[Event "Early-Titled-Tuesday-Blitz-February-06-2024"]
[Site "Chess.com"]
[Date "2024.02.06"]
[Round "2"]
[White "KhungThep"]
[Black "xamax2000"]
[Result "0-1"]
[WhiteElo "2585"]
[BlackElo "2855"]
[TimeControl "180+1"]
[EndTime "8:19:36 PST"]
[Termination "xamax2000 won by resignation"]

1. d4 {[%clk 0:02:58.4]} 1... d5 {[%clk 0:02:59.1]} 2. c4 {[%clk 0:02:58.7]}
2... e6 {[%clk 0:02:59.5]} 3. Nc3 {[%clk 0:02:58.3]} 3... Nf6 {[%clk 0:02:59.8]}
4. Bg5 {[%clk 0:02:57.6]} 4... c6 {[%clk 0:02:59]} 5. cxd5 {[%clk 0:02:57.3]}
5... exd5 {[%clk 0:02:58.9]} 6. e3 {[%clk 0:02:57.8]} 6... Bd6 {[%clk
0:02:59.5]} 7. Bd3 {[%clk 0:02:56.4]} 7... O-O {[%clk 0:02:59.9]} 8. Qc2 {[%clk
0:02:55.8]} 8... h6 {[%clk 0:03:00.4]} 9. Bh4 {[%clk 0:02:55.8]} 9... Re8 {[%clk
0:03:00.9]} 10. Nf3 {[%clk 0:02:55.8]} 10... Bg4 {[%clk 0:02:59.4]} 11. Nd2
{[%clk 0:02:30.9]} 11... Be6 {[%clk 0:02:53.9]} 12. Bg3 {[%clk 0:02:28.2]} 12...
Bxg3 {[%clk 0:02:50.2]} 13. hxg3 {[%clk 0:02:29.1]} 13... Nbd7 {[%clk
0:02:50.7]} 14. O-O {[%clk 0:02:28.3]} 14... a5 {[%clk 0:02:46.7]} 15. a3 {[%clk
0:02:26.3]} 15... Qe7 {[%clk 0:02:35.9]} 16. Nf3 {[%clk 0:02:24.3]} 16... Nb6
{[%clk 0:02:30.5]} 17. Ne5 {[%clk 0:02:14.6]} 17... Nc8 {[%clk 0:02:30.1]} 18.
Rab1 {[%clk 0:02:09.4]} 18... Nd6 {[%clk 0:02:24.4]} 19. b4 {[%clk 0:02:06.3]}
19... axb4 {[%clk 0:02:21.7]} 20. axb4 {[%clk 0:02:07.2]} 20... Rec8 {[%clk
0:01:38.6]} 21. Na4 {[%clk 0:02:05.5]} 21... Rc7 {[%clk 0:01:33.5]} 22. Nc5
{[%clk 0:01:50.6]} 22... Nd7 {[%clk 0:01:19.3]} 23. Nexd7 {[%clk 0:01:42.4]}
23... Bxd7 {[%clk 0:01:19.3]} 24. Qe2 {[%clk 0:01:13.4]} 24... Bf5 {[%clk
0:01:12.8]} 25. Bxf5 {[%clk 0:01:09.8]} 25... Nxf5 {[%clk 0:01:13.7]} 26. Qd3
{[%clk 0:01:03.4]} 26... Nd6 {[%clk 0:01:12.8]} 27. Ra1 {[%clk 0:00:57.8]} 27...
Re8 {[%clk 0:01:13.2]} 28. Ra2 {[%clk 0:00:51.9]} 28... h5 {[%clk 0:01:10.6]}
29. Rfa1 {[%clk 0:00:48.4]} 29... g6 {[%clk 0:01:10.8]} 30. Ra8 {[%clk
0:00:40.9]} 30... b6 {[%clk 0:00:59.2]} 31. Nb3 {[%clk 0:00:29]} 31... Nc4
{[%clk 0:00:53.1]} 32. Rxe8+ {[%clk 0:00:19.9]} 32... Qxe8 {[%clk 0:00:53]} 33.
Nd2 {[%clk 0:00:20.7]} 33... b5 {[%clk 0:00:53.2]} 34. Nb3 {[%clk 0:00:20.7]}
34... Qe7 {[%clk 0:00:48.9]} 35. Nc5 {[%clk 0:00:20.6]} 35... Ra7 {[%clk
0:00:49.7]} 36. Qb1 {[%clk 0:00:19.2]} 36... Kg7 {[%clk 0:00:17.7]} 37. Ra2
{[%clk 0:00:19.3]} 37... Ra3 {[%clk 0:00:16]} 38. Qa1 {[%clk 0:00:17.9]} 38...
Qa7 {[%clk 0:00:14.2]} 39. Rxa3 {[%clk 0:00:18.3]} 39... Qxa3 {[%clk 0:00:15.1]}
40. Qxa3 {[%clk 0:00:18.2]} 40... Nxa3 {[%clk 0:00:16]} 41. Kf1 {[%clk
0:00:13.3]} 41... Kf6 {[%clk 0:00:14.3]} 42. Ke2 {[%clk 0:00:13.2]} 42... Ke7
{[%clk 0:00:14.9]} 43. Kd3 {[%clk 0:00:12]} 43... Nc4 {[%clk 0:00:14]} 44. Kc3
{[%clk 0:00:11.5]} 44... Nd6 {[%clk 0:00:12.7]} 45. Kd3 {[%clk 0:00:11]} 45...
g5 {[%clk 0:00:11.6]} 46. f3 {[%clk 0:00:08.5]} 46... Nf5 {[%clk 0:00:11.7]} 47.
g4 {[%clk 0:00:05]} 47... hxg4 {[%clk 0:00:11.4]} 48. fxg4 {[%clk 0:00:05.9]}
48... Nh6 {[%clk 0:00:10.5]} 49. e4 {[%clk 0:00:06.5]} 49... Nxg4 {[%clk
0:00:10.4]} 50. exd5 {[%clk 0:00:03.7]} 50... cxd5 {[%clk 0:00:11.3]} 51. Ke2
{[%clk 0:00:03.6]} 51... f5 {[%clk 0:00:10]} 52. Na6 {[%clk 0:00:02.4]} 52...
Kd6 {[%clk 0:00:09.7]} 53. Nc5 {[%clk 0:00:03.3]} 53... Nf6 {[%clk 0:00:10]} 54.
Ke3 {[%clk 0:00:03.4]} 54... Ne4 {[%clk 0:00:09.9]} 55. Nd3 {[%clk 0:00:04.3]}
55... f4+ {[%clk 0:00:09.1]} 56. Kf3 {[%clk 0:00:02.9]} 56... Nf6 {[%clk
0:00:09.6]} 57. Ne5 {[%clk 0:00:02.8]} 57... Ke6 {[%clk 0:00:10.1]} 58. g3
{[%clk 0:00:03]} 58... fxg3 {[%clk 0:00:09.4]} 59. Kxg3 {[%clk 0:00:03.9]} 59...
Kf5 {[%clk 0:00:10.1]} 60. Nc6 {[%clk 0:00:03.5]} 60... Ne4+ {[%clk 0:00:10.5]}
61. Kf3 {[%clk 0:00:03.8]} 61... g4+ {[%clk 0:00:11]} 62. Ke3 {[%clk 0:00:03.9]}
62... Nd6 {[%clk 0:00:08.5]} 63. Na7 {[%clk 0:00:03.9]} 63... Kg5 {[%clk
0:00:07.4]} 64. Nc6 {[%clk 0:00:04]} 64... Nc4+ {[%clk 0:00:07.7]} 65. Kf2
{[%clk 0:00:03.7]} 65... Kf4 {[%clk 0:00:07.5]} 66. Ne7 {[%clk 0:00:03.8]} 66...
g3+ {[%clk 0:00:07.9]} 67. Kg2 {[%clk 0:00:03.8]} 67... Ne3+ {[%clk 0:00:08.4]}
68. Kg1 {[%clk 0:00:04]} 68... Ke4 {[%clk 0:00:08.5]} 69. Ng6 {[%clk 0:00:04.1]}
69... Kxd4 {[%clk 0:00:08.4]} 70. Ne7 {[%clk 0:00:04.5]} 70... Kc4 {[%clk
0:00:08.7]} 71. Nc6 {[%clk 0:00:05.4]} 71... d4 {[%clk 0:00:08.8]} 72. Ne5+
{[%clk 0:00:05.9]} 72... Kxb4 {[%clk 0:00:09.3]} 73. Nf3 {[%clk 0:00:06.6]}
73... Kc3 {[%clk 0:00:09.8]} 74. Nh4 {[%clk 0:00:05.8]} 74... b4 {[%clk
0:00:09.8]} 75. Ng2 {[%clk 0:00:05.2]} 75... Nxg2 {[%clk 0:00:09.5]} 76. Kxg2
{[%clk 0:00:06.1]} 76... b3 {[%clk 0:00:10.4]} 0-1